[Event "*** Titled Tuesday Blitz"]
[Site "Chess.com"]
[Date "2020.05.05"]
[Round "6"]
[White "Rytenko_V"]
[Black "DenLaz"]
[Result "0-1"]
[WhiteElo "2479"]
[BlackElo "2681"]
[TimeControl "180+1"]
[EndTime "11:09:27 PDT"]
[Termination "DenLaz won by checkmate"]

1. e4 {[%clk 0:02:33.5]} 1... e6 {[%clk 0:02:57.9]} 2. d4 {[%clk 0:02:31.2]}
2... b6 {[%clk 0:02:58.2]} 3. Nc3 {[%clk 0:02:31.3]} 3... Bb7 {[%clk 0:02:55.8]}
4. Bd3 {[%clk 0:02:31.9]} 4... d5 {[%clk 0:02:53.4]} 5. Nge2 {[%clk 0:02:28.6]}
5... dxe4 {[%clk 0:02:48]} 6. Bxe4 {[%clk 0:02:27.4]} 6... Bxe4 {[%clk
0:02:47.1]} 7. Nxe4 {[%clk 0:02:28.3]} 7... Be7 {[%clk 0:02:47.2]} 8. Nf4 {[%clk
0:02:22.7]} 8... Nf6 {[%clk 0:02:46.3]} 9. Nxf6+ {[%clk 0:02:22.9]} 9... Bxf6
{[%clk 0:02:47.2]} 10. Qf3 {[%clk 0:02:21.8]} 10... c6 {[%clk 0:02:44.8]} 11. c3
{[%clk 0:02:20.8]} 11... O-O {[%clk 0:02:43.5]} 12. Nh5 {[%clk 0:02:20.2]} 12...
Re8 {[%clk 0:02:19]} 13. O-O {[%clk 0:02:04.2]} 13... Be7 {[%clk 0:02:02.7]} 14.
Re1 {[%clk 0:01:51.7]} 14... g6 {[%clk 0:01:59.2]} 15. Bh6 {[%clk 0:01:48.8]}
15... Nd7 {[%clk 0:01:49.7]} 16. Qxc6 {[%clk 0:01:40.5]} 16... gxh5 {[%clk
0:01:40.5]} 17. Re3 {[%clk 0:01:39.8]} 17... Kh8 {[%clk 0:01:30.5]} 18. Rg3
{[%clk 0:01:38]} 18... Bf8 {[%clk 0:01:29.6]} 19. Bg5 {[%clk 0:01:22.1]} 19...
f6 {[%clk 0:01:28.5]} 20. Bh4 {[%clk 0:01:17.8]} 20... Qe7 {[%clk 0:01:23.1]}
21. Re1 {[%clk 0:01:09.3]} 21... Qf7 {[%clk 0:01:18.8]} 22. Qb7 {[%clk
0:01:00.4]} 22... Bg7 {[%clk 0:01:04.2]} 23. h3 {[%clk 0:00:55.8]} 23... Ne5
{[%clk 0:00:54.8]} 24. Qe4 {[%clk 0:00:39.7]} 24... Ng6 {[%clk 0:00:50.5]} 25.
Rf3 {[%clk 0:00:39.3]} 25... f5 {[%clk 0:00:48.8]} 26. Bg5 {[%clk 0:00:38.4]}
26... Bf6 {[%clk 0:00:36.4]} 27. Qe3 {[%clk 0:00:31.5]} 27... Bxg5 {[%clk
0:00:30.1]} 28. Qxg5 {[%clk 0:00:32.4]} 28... h4 {[%clk 0:00:30.7]} 29. Rfe3
{[%clk 0:00:27.3]} 29... f4 {[%clk 0:00:25.7]} 30. Re4 {[%clk 0:00:25.9]} 30...
Re7 {[%clk 0:00:21]} 31. d5 {[%clk 0:00:24.8]} 31... e5 {[%clk 0:00:19.3]} 32.
c4 {[%clk 0:00:22.1]} 32... Rf8 {[%clk 0:00:19.5]} 33. b4 {[%clk 0:00:18.2]}
33... Qf5 {[%clk 0:00:19.5]} 34. Qxf5 {[%clk 0:00:15.2]} 34... Rxf5 {[%clk
0:00:20.4]} 35. d6 {[%clk 0:00:16.1]} 35... Rd7 {[%clk 0:00:20.5]} 36. c5 {[%clk
0:00:16.6]} 36... Rf8 {[%clk 0:00:19.2]} 37. Rd1 {[%clk 0:00:15.6]} 37... Rc8
{[%clk 0:00:17.7]} 38. Rc4 {[%clk 0:00:15.2]} 38... Rc6 {[%clk 0:00:15.1]} 39.
Rd5 {[%clk 0:00:12.9]} 39... Kg7 {[%clk 0:00:14]} 40. a4 {[%clk 0:00:12.1]}
40... Kf6 {[%clk 0:00:13.4]} 41. b5 {[%clk 0:00:12.1]} 41... Rxc5 {[%clk
0:00:13.1]} 42. Rcxc5 {[%clk 0:00:12.8]} 42... bxc5 {[%clk 0:00:14]} 43. Rxc5
{[%clk 0:00:13.7]} 43... Ke6 {[%clk 0:00:13.6]} 44. a5 {[%clk 0:00:09.9]} 44...
Kxd6 {[%clk 0:00:10.5]} 45. Rc6+ {[%clk 0:00:10.3]} 45... Kd5 {[%clk 0:00:10.8]}
46. Ra6 {[%clk 0:00:09.4]} 46... e4 {[%clk 0:00:10.4]} 47. Kf1 {[%clk 0:00:09]}
47... Ne5 {[%clk 0:00:09.8]} 48. b6 {[%clk 0:00:08.9]} 48... axb6 {[%clk
0:00:09.3]} 49. axb6 {[%clk 0:00:09.4]} 49... Rb7 {[%clk 0:00:09.2]} 50. Ra5+
{[%clk 0:00:08.7]} 50... Kd6 {[%clk 0:00:09.3]} 51. Rb5 {[%clk 0:00:09.2]} 51...
Nd7 {[%clk 0:00:09.4]} 52. Rb4 {[%clk 0:00:08.3]} 52... Kd5 {[%clk 0:00:09.5]}
53. Rb5+ {[%clk 0:00:08.3]} 53... Kc6 {[%clk 0:00:09.6]} 54. Rh5 {[%clk
0:00:08.6]} 54... Rxb6 {[%clk 0:00:08.4]} 55. Rxh4 {[%clk 0:00:09.2]} 55... Rb1+
{[%clk 0:00:07.1]} 56. Ke2 {[%clk 0:00:09.7]} 56... Rb2+ {[%clk 0:00:07.6]} 57.
Ke1 {[%clk 0:00:10.2]} 57... Ne5 {[%clk 0:00:07.2]} 58. Kf1 {[%clk 0:00:08.5]}
58... Nd3 {[%clk 0:00:06.2]} 59. Rh6+ {[%clk 0:00:08.9]} 59... Kd5 {[%clk
0:00:05.9]} 60. Rxh7 {[%clk 0:00:09.8]} 60... Rxf2+ {[%clk 0:00:04.8]} 61. Kg1
{[%clk 0:00:10.7]} 61... Rb2 {[%clk 0:00:05.4]} 62. Rd7+ {[%clk 0:00:11.1]}
62... Ke5 {[%clk 0:00:05.6]} 63. h4 {[%clk 0:00:12]} 63... f3 {[%clk 0:00:05.6]}
64. gxf3 {[%clk 0:00:12]} 64... Nf4 {[%clk 0:00:04.6]} 65. Re7+ {[%clk
0:00:11.2]} 65... Kf5 {[%clk 0:00:04.4]} 66. Rxe4 {[%clk 0:00:10.6]} 66... Rb3
{[%clk 0:00:04.8]} 67. Kf2 {[%clk 0:00:10.2]} 67... Nd3+ {[%clk 0:00:04.1]} 68.
Kg3 {[%clk 0:00:10.5]} 68... Ne5 {[%clk 0:00:04.6]} 69. Rf4+ {[%clk 0:00:10.2]}
69... Kg6 {[%clk 0:00:05.2]} 70. Kg2 {[%clk 0:00:08.6]} 70... Nf7 {[%clk
0:00:05.5]} 71. Rg4+ {[%clk 0:00:08.6]} 71... Kh5 {[%clk 0:00:05.3]} 72. Kg3
{[%clk 0:00:08.4]} 72... Kh6 {[%clk 0:00:05.5]} 73. Rf4 {[%clk 0:00:08.6]} 73...
Kg7 {[%clk 0:00:05.9]} 74. Kg4 {[%clk 0:00:08.3]} 74... Nh6+ {[%clk 0:00:05]}
75. Kg5 {[%clk 0:00:08.3]} 75... Rb5+ {[%clk 0:00:05.9]} 76. Rf5 {[%clk
0:00:06]} 76... Rxf5# {[%clk 0:00:06]} 0-1

[Event "*** Titled Tuesday Blitz"]
[Site "Chess.com"]
[Date "2020.05.05"]
[Round "6"]
[White "Azeryahu"]
[Black "Maghalashvili"]
[Result "1/2-1/2"]
[WhiteElo "2895"]
[BlackElo "2815"]
[TimeControl "180+1"]
[EndTime "11:09:31 PDT"]
[Termination "Game drawn - insufficient material"]

1. e4 {[%clk 0:03:00.9]} 1... c5 {[%clk 0:02:59.4]} 2. Nc3 {[%clk 0:02:59.8]}
2... d6 {[%clk 0:02:58]} 3. Nge2 {[%clk 0:02:57.4]} 3... Nf6 {[%clk 0:02:56]} 4.
h3 {[%clk 0:02:57]} 4... g6 {[%clk 0:02:53.3]} 5. g4 {[%clk 0:02:56.8]} 5... Bg7
{[%clk 0:02:53.6]} 6. Bg2 {[%clk 0:02:57.4]} 6... O-O {[%clk 0:02:53]} 7. d3
{[%clk 0:02:57.8]} 7... Nc6 {[%clk 0:02:51.1]} 8. Be3 {[%clk 0:02:58.2]} 8...
Rb8 {[%clk 0:02:50.9]} 9. Qd2 {[%clk 0:02:57.5]} 9... b5 {[%clk 0:02:47.7]} 10.
a3 {[%clk 0:02:56.8]} 10... a5 {[%clk 0:02:46.9]} 11. O-O {[%clk 0:02:56.7]}
11... b4 {[%clk 0:02:47.1]} 12. axb4 {[%clk 0:02:57.6]} 12... axb4 {[%clk
0:02:47.9]} 13. Nd1 {[%clk 0:02:57.6]} 13... h5 {[%clk 0:02:39.2]} 14. f3 {[%clk
0:02:45.1]} 14... Re8 {[%clk 0:02:32.6]} 15. Ng3 {[%clk 0:02:44.9]} 15... hxg4
{[%clk 0:02:28.2]} 16. fxg4 {[%clk 0:02:41.4]} 16... Nd4 {[%clk 0:02:24.5]} 17.
Nf2 {[%clk 0:02:34.6]} 17... b3 {[%clk 0:02:16]} 18. c3 {[%clk 0:02:34.7]} 18...
Nc2 {[%clk 0:02:15.8]} 19. Ra7 {[%clk 0:02:34.7]} 19... Qb6 {[%clk 0:02:11.2]}
20. Raa1 {[%clk 0:02:04.1]} 20... Nxa1 {[%clk 0:02:10.3]} 21. Rxa1 {[%clk
0:02:05]} 21... Bb7 {[%clk 0:02:10.1]} 22. Bh6 {[%clk 0:02:04.7]} 22... Ra8
{[%clk 0:01:57.1]} 23. Rf1 {[%clk 0:02:04.4]} 23... Ra2 {[%clk 0:01:44.5]} 24.
Kh1 {[%clk 0:01:55.9]} 24... Rea8 {[%clk 0:01:37.8]} 25. Bxg7 {[%clk 0:01:49.6]}
25... Kxg7 {[%clk 0:01:36.6]} 26. g5 {[%clk 0:01:47.1]} 26... Nd7 {[%clk
0:01:30.7]} 27. Qf4 {[%clk 0:01:32.6]} 27... Ra1 {[%clk 0:01:21.6]} 28. Rxa1
{[%clk 0:01:33]} 28... Rxa1+ {[%clk 0:01:20.8]} 29. Kh2 {[%clk 0:01:33.9]} 29...
Ne5 {[%clk 0:01:19.2]} 30. h4 {[%clk 0:01:24.1]} 30... Ra2 {[%clk 0:01:09.9]}
31. Nd1 {[%clk 0:01:23.8]} 31... Ra1 {[%clk 0:01:06.6]} 32. Ne3 {[%clk
0:01:22.4]} 32... Rb1 {[%clk 0:01:05.6]} 33. d4 {[%clk 0:01:15.2]} 33... cxd4
{[%clk 0:01:00.9]} 34. cxd4 {[%clk 0:01:16.1]} 34... Nd3 {[%clk 0:00:58.2]} 35.
Qf3 {[%clk 0:01:10.4]} 35... Rxb2 {[%clk 0:00:49.2]} 36. h5 {[%clk 0:00:48.2]}
36... Rxg2+ {[%clk 0:00:39.2]} 37. Nxg2 {[%clk 0:00:49.1]} 37... Qxd4 {[%clk
0:00:38.5]} 38. h6+ {[%clk 0:00:46.1]} 38... Kg8 {[%clk 0:00:37.4]} 39. h7+
{[%clk 0:00:46]} 39... Kxh7 {[%clk 0:00:35.4]} 40. Qxf7+ {[%clk 0:00:46.5]}
40... Qg7 {[%clk 0:00:35.2]} 41. Qxb3 {[%clk 0:00:47]} 41... Nc5 {[%clk
0:00:33.3]} 42. Qf3 {[%clk 0:00:34.6]} 42... Kg8 {[%clk 0:00:29.1]} 43. Nf4
{[%clk 0:00:27.2]} 43... Qb2+ {[%clk 0:00:25.7]} 44. Kg1 {[%clk 0:00:21.3]}
44... Qb1+ {[%clk 0:00:24.3]} 45. Kh2 {[%clk 0:00:21.4]} 45... Nxe4 {[%clk
0:00:22.1]} 46. Nxg6 {[%clk 0:00:12.9]} 46... Qc2+ {[%clk 0:00:21.5]} 47. Ne2
{[%clk 0:00:06.5]} 47... Kg7 {[%clk 0:00:10.4]} 48. Nxe7 {[%clk 0:00:06.7]}
48... Nxg5 {[%clk 0:00:07.6]} 49. Qc3+ {[%clk 0:00:04.8]} 49... Qxc3 {[%clk
0:00:06.8]} 50. Nxc3 {[%clk 0:00:05.7]} 50... Kf6 {[%clk 0:00:05.8]} 51. Ned5+
{[%clk 0:00:05.4]} 51... Ke5 {[%clk 0:00:06.1]} 52. Nb4 {[%clk 0:00:03.5]} 52...
Kd4 {[%clk 0:00:05.7]} 53. Nb5+ {[%clk 0:00:03.9]} 53... Kc5 {[%clk 0:00:05.6]}
54. Nxd6 {[%clk 0:00:03.9]} 54... Kxd6 {[%clk 0:00:06]} 55. Nc2 {[%clk
0:00:03.9]} 55... Nf3+ {[%clk 0:00:06.9]} 56. Kg3 {[%clk 0:00:04.1]} 56... Ke5
{[%clk 0:00:07.8]} 57. Ne3 {[%clk 0:00:03.4]} 57... Ke4 {[%clk 0:00:07.8]} 58.
Ng4 {[%clk 0:00:03.6]} 58... Nd4 {[%clk 0:00:08.3]} 59. Nf2+ {[%clk 0:00:03.9]}
59... Ke3 {[%clk 0:00:08.4]} 60. Ng4+ {[%clk 0:00:04.8]} 60... Ke2 {[%clk
0:00:08.7]} 61. Ne5 {[%clk 0:00:05.1]} 61... Bd5 {[%clk 0:00:08]} 62. Kf4 {[%clk
0:00:05.6]} 62... Ne6+ {[%clk 0:00:08]} 63. Kf5 {[%clk 0:00:05.9]} 63... Ke3
{[%clk 0:00:08.3]} 64. Ng4+ {[%clk 0:00:06.3]} 64... Kd4 {[%clk 0:00:08]} 65.
Nf6 {[%clk 0:00:07.2]} 65... Bc4 {[%clk 0:00:07.4]} 66. Ng4 {[%clk 0:00:06.7]}
66... Nc5 {[%clk 0:00:08.3]} 67. Nf6 {[%clk 0:00:06.1]} 67... Be6+ {[%clk
0:00:08.3]} 68. Kf4 {[%clk 0:00:06]} 68... Nd3+ {[%clk 0:00:08.6]} 69. Kg5
{[%clk 0:00:06.4]} 69... Ke5 {[%clk 0:00:08.6]} 70. Ng4+ {[%clk 0:00:07]} 70...
Kd6 {[%clk 0:00:08.7]} 71. Ne3 {[%clk 0:00:06.6]} 71... Ne5 {[%clk 0:00:08.5]}
72. Nf5+ {[%clk 0:00:06.5]} 72... Kd5 {[%clk 0:00:07.9]} 73. Ne7+ {[%clk
0:00:06.5]} 73... Ke4 {[%clk 0:00:06.4]} 74. Ng6 {[%clk 0:00:06.5]} 74... Nf7+
{[%clk 0:00:05.7]} 75. Kf6 {[%clk 0:00:06.5]} 75... Bb3 {[%clk 0:00:06.5]} 76.
Nf8 {[%clk 0:00:05.2]} 76... Kf4 {[%clk 0:00:05.5]} 77. Ne6+ {[%clk 0:00:05.4]}
77... Ke4 {[%clk 0:00:04.7]} 78. Kxf7 {[%clk 0:00:05.7]} 1/2-1/2

[Event "*** Titled Tuesday Blitz"]
[Site "Chess.com"]
[Date "2020.05.05"]
[Round "6"]
[White "LiderChessAcademy"]
[Black "hongnhung1234"]
[Result "1/2-1/2"]
[WhiteElo "2456"]
[BlackElo "2233"]
[TimeControl "180+1"]
[EndTime "11:09:40 PDT"]
[Termination "Game drawn - insufficient material"]

1. d4 {[%clk 0:03:00.9]} 1... f5 {[%clk 0:02:59.2]} 2. Bg5 {[%clk 0:02:57.2]}
2... g6 {[%clk 0:02:58.8]} 3. h4 {[%clk 0:02:55.2]} 3... Bg7 {[%clk 0:02:55.8]}
4. Nc3 {[%clk 0:02:53.1]} 4... d6 {[%clk 0:02:53.2]} 5. e4 {[%clk 0:02:43.3]}
5... h6 {[%clk 0:02:50.4]} 6. Bf4 {[%clk 0:02:39.5]} 6... Nf6 {[%clk 0:02:43.9]}
7. exf5 {[%clk 0:02:18.5]} 7... Bxf5 {[%clk 0:02:42.7]} 8. Bd3 {[%clk
0:02:18.8]} 8... Qd7 {[%clk 0:02:26]} 9. Nf3 {[%clk 0:02:11.7]} 9... Nc6 {[%clk
0:02:21.8]} 10. Bxf5 {[%clk 0:01:37.8]} 10... Qxf5 {[%clk 0:02:19.5]} 11. Qd2
{[%clk 0:01:35.2]} 11... Ne4 {[%clk 0:02:13.1]} 12. Nxe4 {[%clk 0:01:27.2]}
12... Qxe4+ {[%clk 0:02:14]} 13. Be3 {[%clk 0:01:26]} 13... O-O-O {[%clk
0:01:51.8]} 14. O-O-O {[%clk 0:01:20.1]} 14... Kb8 {[%clk 0:01:49.1]} 15. Rhe1
{[%clk 0:01:15.6]} 15... Qd5 {[%clk 0:01:40.7]} 16. Kb1 {[%clk 0:01:05.5]} 16...
e5 {[%clk 0:01:39.4]} 17. dxe5 {[%clk 0:00:37]} 17... Qxd2 {[%clk 0:01:40.3]}
18. Rxd2 {[%clk 0:00:36.6]} 18... Nxe5 {[%clk 0:01:35.5]} 19. Nxe5 {[%clk
0:00:35.9]} 19... Bxe5 {[%clk 0:01:35.7]} 20. f4 {[%clk 0:00:36.1]} 20... Bf6
{[%clk 0:01:31.4]} 21. Bd4 {[%clk 0:00:36.2]} 21... Bxh4 {[%clk 0:01:29.9]} 22.
Rh1 {[%clk 0:00:32.1]} 22... Rhe8 {[%clk 0:01:25.3]} 23. a3 {[%clk 0:00:27.6]}
23... g5 {[%clk 0:01:22.6]} 24. f5 {[%clk 0:00:26.3]} 24... Rd7 {[%clk
0:01:16.5]} 25. g3 {[%clk 0:00:23.1]} 25... Bxg3 {[%clk 0:01:15.2]} 26. Rxh6
{[%clk 0:00:23.6]} 26... Rf7 {[%clk 0:01:12.8]} 27. f6 {[%clk 0:00:20.5]} 27...
Bf4 {[%clk 0:01:10.5]} 28. Re2 {[%clk 0:00:18.6]} 28... Ref8 {[%clk 0:01:01.7]}
29. Re7 {[%clk 0:00:18.3]} 29... c5 {[%clk 0:00:51.6]} 30. Bc3 {[%clk
0:00:14.6]} 30... d5 {[%clk 0:00:49.9]} 31. Rxf7 {[%clk 0:00:12.3]} 31... Rxf7
{[%clk 0:00:50.8]} 32. Rh8+ {[%clk 0:00:12.4]} 32... Kc7 {[%clk 0:00:51]} 33.
Rg8 {[%clk 0:00:12.9]} 33... Kd6 {[%clk 0:00:41.4]} 34. b4 {[%clk 0:00:12.5]}
34... b6 {[%clk 0:00:39.1]} 35. bxc5+ {[%clk 0:00:13.4]} 35... bxc5 {[%clk
0:00:39.8]} 36. Ba5 {[%clk 0:00:12.5]} 36... Rxf6 {[%clk 0:00:37.9]} 37. Bd8
{[%clk 0:00:13]} 37... Rf7 {[%clk 0:00:37.6]} 38. Bxg5 {[%clk 0:00:12.1]} 38...
Rb7+ {[%clk 0:00:37]} 39. Ka2 {[%clk 0:00:11.6]} 39... Be5 {[%clk 0:00:37.1]}
40. Bc1 {[%clk 0:00:09.3]} 40... c4 {[%clk 0:00:34.4]} 41. Rg6+ {[%clk
0:00:09.7]} 41... Kc5 {[%clk 0:00:34.3]} 42. Rg5 {[%clk 0:00:10]} 42... Bf6
{[%clk 0:00:32.8]} 43. Rf5 {[%clk 0:00:09.9]} 43... Bd4 {[%clk 0:00:31.1]} 44.
a4 {[%clk 0:00:09]} 44... Rh7 {[%clk 0:00:27.2]} 45. Ba3+ {[%clk 0:00:08.9]}
45... Kc6 {[%clk 0:00:27.6]} 46. Rf4 {[%clk 0:00:08.3]} 46... Be5 {[%clk
0:00:26.2]} 47. Rf5 {[%clk 0:00:08.6]} 47... Bc3 {[%clk 0:00:21.4]} 48. Rf3
{[%clk 0:00:08.7]} 48... d4 {[%clk 0:00:21.6]} 49. Rf6+ {[%clk 0:00:08.9]} 49...
Kd5 {[%clk 0:00:22.1]} 50. Rd6+ {[%clk 0:00:08.5]} 50... Ke4 {[%clk 0:00:20.2]}
51. Rc6 {[%clk 0:00:07.3]} 51... Rh2 {[%clk 0:00:19.7]} 52. Rxc4 {[%clk
0:00:03.5]} 52... Rxc2+ {[%clk 0:00:20]} 53. Kb3 {[%clk 0:00:04.2]} 53... Kd3
{[%clk 0:00:20.4]} 54. Rc8 {[%clk 0:00:03.4]} 54... Re2 {[%clk 0:00:19.3]} 55.
Bc5 {[%clk 0:00:02.1]} 55... a5 {[%clk 0:00:17.9]} 56. Rd8 {[%clk 0:00:03]}
56... Rb2+ {[%clk 0:00:17.1]} 57. Ka3 {[%clk 0:00:03.9]} 57... Rb1 {[%clk
0:00:14.4]} 58. Bxd4 {[%clk 0:00:04.8]} 58... Bxd4 {[%clk 0:00:14]} 59. Ka2
{[%clk 0:00:05.4]} 59... Rb2+ {[%clk 0:00:13.2]} 60. Ka3 {[%clk 0:00:05.4]}
60... Rb4 {[%clk 0:00:13.4]} 61. Rc8 {[%clk 0:00:05.1]} 61... Kd2 {[%clk
0:00:11.9]} 62. Rd8 {[%clk 0:00:04.7]} 62... Kc3 {[%clk 0:00:11.5]} 63. Rc8+
{[%clk 0:00:03.6]} 63... Rc4 {[%clk 0:00:11.5]} 64. Rd8 {[%clk 0:00:03.2]} 64...
Bc5+ {[%clk 0:00:11.2]} 65. Ka2 {[%clk 0:00:03.4]} 65... Rxa4+ {[%clk
0:00:12.1]} 66. Kb1 {[%clk 0:00:04.3]} 66... Bd4 {[%clk 0:00:12.2]} 67. Rg8
{[%clk 0:00:04]} 67... Kd3 {[%clk 0:00:11.1]} 68. Rg3+ {[%clk 0:00:03.4]} 68...
Be3 {[%clk 0:00:11.5]} 69. Rg8 {[%clk 0:00:04.3]} 69... Rb4+ {[%clk 0:00:11.9]}
70. Ka2 {[%clk 0:00:04]} 70... Rb7 {[%clk 0:00:12.1]} 71. Rd8+ {[%clk
0:00:04.3]} 71... Bd4 {[%clk 0:00:11.5]} 72. Rc8 {[%clk 0:00:05.2]} 72... Ra7
{[%clk 0:00:11.6]} 73. Ka3 {[%clk 0:00:05.5]} 73... a4 {[%clk 0:00:11.8]} 74.
Ka2 {[%clk 0:00:05.7]} 74... a3 {[%clk 0:00:11]} 75. Rb8 {[%clk 0:00:05.6]}
75... Ra4 {[%clk 0:00:09.7]} 76. Rb3+ {[%clk 0:00:05]} 76... Kc2 {[%clk
0:00:08.6]} 77. Rxa3 {[%clk 0:00:05.9]} 77... Rb4 {[%clk 0:00:09.2]} 78. Ra5
{[%clk 0:00:05.4]} 78... Rb2+ {[%clk 0:00:09.2]} 79. Ka3 {[%clk 0:00:05.6]}
79... Rb3+ {[%clk 0:00:09.8]} 80. Ka4 {[%clk 0:00:05.8]} 80... Bc3 {[%clk
0:00:10.1]} 81. Rb5 {[%clk 0:00:05]} 81... Rxb5 {[%clk 0:00:06.1]} 82. Kxb5
{[%clk 0:00:05.9]} 1/2-1/2